fUST/lending_fUST_20240413
["ID","MTS","AMOUNT","RATE_DAILY","PERIOD"]
[322320541,1712951451505,-500.0,0.0005863,120]
[322320542,1712951451515,-500.0,0.0005863,120]
[322320543,1712951451524,-1384.49,0.0005863,120]
[322320544,1712951451533,-1760.0,0.0005863,120]
[322320545,1712951451543,-500.0,0.0005863,120]
[322320546,1712951451553,-500.0,0.0005863,120]
[322320547,1712951451563,-500.0,0.0005863,120]
[322320548,1712951451572,-1256.8,0.0005863,120]
[322320549,1712951451581,-527.54,0.0005863,120]
[322320550,1712951451591,-2181.57,0.0005863,120]
[322320551,1712951451601,-500.0,0.0005863,120]
[322320552,1712951451614,-1008.22270885,0.000587,60]
[322320553,1712951451624,-905.0,0.00059814,120]
[322320554,1712951451634,-410.0,0.00059814,120]
[322320555,1712951451643,-410.0,0.00059814,120]
[322320556,1712951451654,-151.942868,0.00059814,120]
[322320557,1712951451664,-166.668538,0.00059814,120]
[322320558,1712951451676,-166.668538,0.00059814,120]
[322320559,1712951451688,-2217.68516068,0.0006,120]
[322320560,1712951451710,-71206.98266441,0.0006,120]
[322320561,1712951451720,-2008.57284372,0.0006,30]
[322320562,1712951451729,-671.49786525,0.0006,12]
[322320563,1712951451739,-5016.33297419,0.0006,30]
[322320564,1712951451748,-45801.40016734,0.0006,2]
[322320565,1712951451758,-5000.0,0.0006,120]
[322320566,1712951451767,-6000.0,0.0006,120]
[322320567,1712951451777,-6000.0,0.0006,120]
[322320568,1712951451786,-6000.0,0.0006,120]
[322320569,1712951451796,-151.0,0.0006,120]
[322320570,1712951451806,-185.816553,0.0006,120]
[322320571,1712951451816,-151.0,0.0006,120]
[322320572,1712951451826,-164.441677,0.0006,120]
[322320573,1712951451837,-164.441677,0.0006,120]
[322320574,1712951451847,-758.16753,0.0006,120]
[322320575,1712951451861,-758.16753,0.0006,120]
[322320576,1712951451871,-158.672482,0.0006,120]
[322320577,1712951451881,-158.672482,0.0006,120]
[322320578,1712951451891,-248.35466,0.0006,14]
[322320579,1712951451900,-248.35466,0.0006,14]
[322320580,1712951451909,-230.064055,0.0006,120]
[322320581,1712951451919,-230.064055,0.0006,120]
[322320582,1712951451928,-151.0,0.0006,120]
[322320583,1712951451938,-166.717937,0.00060274,2]
[322320584,1712951451948,-161.34770852,0.00060369,120]
[322320585,1712951451958,-500.0,0.00060547,120]
[322320586,1712951451967,-500.0,0.00060547,120]
[322320587,1712951451977,-500.0,0.00060547,120]
[322320588,1712951451986,-500.0,0.00060547,120]
[322320589,1712951451996,-500.0,0.00060547,120]
[322320590,1712951452006,-113.99995759,0.00060547,120]
[322320591,1712951452115,-386.00004241,0.00060547,120]
[322320592,1712951452125,-183.23638059,0.00060547,120]
[322320593,1712951452135,-734.55,0.00060547,120]
[322320594,1712951452146,-500.0,0.00060547,120]
[322320595,1712951452156,-500.0,0.00060547,120]
[322320596,1712951452165,-500.0,0.00060547,120]
[322320597,1712951452174,-500.0,0.00060547,120]
[322320598,1712951452184,-500.0,0.00060547,120]
[322320599,1712951452194,-503.36173929,0.00060547,120]
[322320600,1712951452203,-500.0,0.00060547,120]
[322320601,1712951452212,-500.0,0.00060547,120]
[322320602,1712951452221,-888.76,0.00060547,120]
[322320603,1712951452231,-500.0,0.00060547,120]
[322320604,1712951452240,-500.0,0.00060547,120]
[322320605,1712951452249,-500.0,0.00060547,120]
[322320606,1712951452258,-502.41732044,0.00060547,120]
[322320607,1712951452267,-500.0,0.00060547,120]
[322320608,1712951452276,-500.0,0.00060547,120]
[322320609,1712951452285,-500.0,0.00060547,120]
[322320610,1712951452295,-500.0,0.00060547,120]
[322320611,1712951452304,-500.0,0.00060547,120]
[322320612,1712951452314,-512.15117389,0.00060547,120]
[322320613,1712951452323,-500.0,0.00060547,120]
[322320614,1712951452332,-762.13,0.00060547,120]
[322320615,1712951452341,-1807.37,0.00060547,60]
[322320616,1712951452350,-500.0,0.00060547,120]
[322320617,1712951452359,-500.0,0.00060547,120]
[322320618,1712951452368,-500.0,0.00060547,120]
[322320619,1712951452377,-500.0,0.00060547,120]
[322320620,1712951452386,-500.0,0.00060547,120]
[322320621,1712951452396,-500.0,0.00060547,120]
[322320622,1712951452405,-834.11,0.00060547,120]
[322320623,1712951452414,-500.0,0.00060547,120]
[322320624,1712951452423,-1212.39,0.00060547,120]
[322320625,1712951452432,-500.0,0.00060547,120]
[322320626,1712951452441,-500.0,0.00060547,120]
[322320627,1712951452450,-500.0,0.00060547,120]
[322320628,1712951452516,-501.3116989,0.00060547,120]
[322320629,1712951452525,-742.69,0.00060547,120]
[322320630,1712951452534,-500.0,0.00060547,120]
[322320631,1712951452544,-6615.18,0.00060547,120]
[322320632,1712951452553,-1356.1,0.00060547,120]
[322320633,1712951452562,-500.0,0.00060547,120]
[322320634,1712951452571,-831.74,0.00060547,120]
[322320635,1712951452580,-500.0,0.00060547,120]
[322320636,1712951452590,-3749.95,0.00060547,120]
[322320637,1712951452599,-1396.89,0.00060547,120]
[322320638,1712951452609,-500.0,0.00060547,120]
[322320639,1712951452618,-1000.0,0.00060547,7]
[322320640,1712951452629,-500.0,0.00060547,120]
[322320641,1712951452638,-130.44428948,0.00060547,120]
[322320642,1712951452650,-369.55571052,0.00060547,120]
[322320643,1712951452660,-2721.92,0.00060547,120]
[322320644,1712951452669,-500.0,0.00060547,120]
[322320645,1712951452679,-500.0,0.00060547,120]
[322320646,1712951452688,-503.87,0.00060547,120]
[322320647,1712951452698,-500.0,0.00060547,120]
[322320648,1712951452708,-936.62,0.00060547,120]
[322320649,1712951452718,-870.38,0.00060547,120]
[322320650,1712951452727,-500.0,0.00060547,120]
[322320651,1712951452737,-3029.72,0.00060547,120]
[322320652,1712951452748,-500.0,0.00060547,120]
[322320653,1712951452757,-500.0,0.00060547,60]
[322320654,1712951452766,-500.0,0.00060547,120]
[322320655,1712951452775,-500.0,0.00060547,120]
[322320656,1712951452786,-902.5,0.00060547,120]
[322320657,1712951452797,-2508.37,0.00060547,120]
[322320658,1712951452807,-800.65,0.00060547,120]
[322320659,1712951452816,-1242.51,0.00060547,120]
[322320660,1712951452826,-500.0,0.00060547,120]
[322320661,1712951452838,-1165.32,0.00060547,120]
[322320662,1712951452848,-500.0,0.00060547,120]
[322320663,1712951452857,-2000.4,0.00060547,120]
[322320664,1712951452866,-500.0,0.00060547,120]
[322320665,1712951452877,-1286.56,0.00060547,120]
[322320666,1712951452887,-500.0,0.00060547,120]
[322320667,1712951452896,-450.49073602,0.00060547,120]
[322320668,1712951452905,-844.43,0.00060547,120]
[322320669,1712951452915,-1267.5,0.00060547,120]
[322320670,1712951452924,-508.01813485,0.00060547,120]
[322320671,1712951452933,-500.0,0.00060547,120]
[322320672,1712951452943,-500.0,0.00060547,120]
[322320673,1712951452952,-503.94137622,0.00060547,120]
[322320674,1712951452962,-828.94,0.00060547,120]
[322320675,1712951452971,-300.0,0.00060547,7]
[322320676,1712951452981,-857.33,0.00060547,120]
[322320677,1712951452990,-500.0,0.00060547,120]
[322320678,1712951453001,-500.0,0.00060547,120]
[322320679,1712951453010,-500.0,0.00060547,120]
[322320680,1712951453019,-500.0,0.00060547,120]
[322320681,1712951453029,-500.0,0.00060547,120]
[322320682,1712951453037,-500.0,0.00060547,120]
[322320683,1712951453046,-500.0,0.00060547,120]
[322320684,1712951453055,-500.0,0.00060547,120]
[322320685,1712951453064,-552.601282,0.00060547,120]
[322320686,1712951453074,-500.0,0.00060547,120]
[322320687,1712951453083,-31528.79694871,0.00060547,120]
[322320688,1712951453097,-2192.75269065,0.00060547,120]
[322320689,1712951453113,-3366.16036064,0.00060547,120]
[322320690,1712951453123,-500.0,0.00060547,120]
[322320691,1712951453132,-1034.24,0.00060547,120]
[322320692,1712951453142,-500.0,0.00060547,120]
[322320693,1712951453152,-11023.14,0.00060547,120]
[322320694,1712951453161,-1092.24,0.00060547,120]
[322320695,1712951453170,-2860.19,0.00060547,21]
[322320696,1712951453179,-500.0,0.00060547,120]
[322320697,1712951453189,-1621.18,0.00060547,120]
[322320698,1712951453198,-500.0,0.00060547,120]
[322320699,1712951453208,-637.09408538,0.00060547,120]
[322320700,1712951453217,-500.0,0.00060547,120]
[322320701,1712951453226,-500.0,0.00060547,120]
[322320702,1712951453237,-3998.1,0.00060547,120]
[322320703,1712951453246,-500.0,0.00060547,120]
[322320704,1712951453257,-500.0,0.00060547,120]
[322320705,1712951453266,-1384.49,0.00060547,120]
[322320706,1712951453276,-1760.0,0.00060547,120]
[322320707,1712951453286,-500.0,0.00060547,120]
[322320708,1712951453295,-500.0,0.00060547,120]
[322320709,1712951453305,-500.0,0.00060547,120]
[322320710,1712951453315,-1256.8,0.00060547,120]
[322320711,1712951453324,-527.54,0.00060547,120]
[322320712,1712951453333,-2181.57,0.00060547,120]
[322320713,1712951453342,-500.0,0.00060547,120]
[322320714,1712951453352,-1000.0,0.00060745,120]
[322320715,1712951453362,-1811.00220796,0.00061,7]
[322320716,1712951453371,-344.91452185,0.000616,120]
[322320717,1712951453380,-158.90504737,0.00061948,120]
[322320718,1712951453389,-222.909598,0.00062004,2]
[322320719,1712951453400,-357.0585463,0.00062465,120]
[322320720,1712951453409,-500.0,0.00062465,120]
[322320721,1712951453419,-410.0,0.00062465,120]
[322320722,1712951453428,-410.0,0.00062465,120]
[322320723,1712951453437,-500.0,0.00062465,120]
[322320724,1712951453446,-500.0,0.00062465,120]
[322320725,1712951453455,-500.0,0.00062465,120]
[322320726,1712951453464,-500.0,0.00062465,120]
[322320727,1712951453527,-151.0,0.00062465,120]
[322320728,1712951453538,-734.55,0.00062465,120]
[322320729,1712951453548,-410.2038779,0.00062465,120]
[322320730,1712951453557,-500.0,0.00062465,120]
[322320731,1712951453568,-573.03156331,0.00062465,120]
[322320732,1712951453579,-500.0,0.00062465,120]
[322320733,1712951453591,-500.0,0.00062465,120]
[322320734,1712951453600,-888.76,0.00062465,120]
[322320735,1712951453610,-500.0,0.00062465,120]
[322320736,1712951453619,-603.8304233,0.00062465,120]
[322320737,1712951453629,-500.0,0.00062465,120]
[322320738,1712951453639,-453.22150382,0.00062465,120]
[322320739,1712951453648,-166.668538,0.00062465,120]
[322320740,1712951453658,-166.668538,0.00062465,120]
[322320741,1712951453667,-500.0,0.00062465,120]
[322320742,1712951453676,-500.0,0.00062465,120]
[322320743,1712951453685,-539.21,0.00062465,120]
[322320744,1712951453694,-500.0,0.00062465,120]
[322320745,1712951453703,-762.13,0.00062465,120]
[322320746,1712951453713,-1807.37,0.00062465,60]
[322320747,1712951453722,-500.0,0.00062465,120]
[322320748,1712951453731,-324.59005508,0.00062465,120]
[322320749,1712951453741,-500.0,0.00062465,120]
[322320750,1712951453750,-500.0,0.00062465,120]
[322320751,1712951453759,-834.11,0.00062465,120]
[322320752,1712951453769,-500.0,0.00062465,120]
[322320753,1712951453779,-1212.39,0.00062465,120]
[322320754,1712951453788,-555.04481474,0.00062465,120]
[322320755,1712951453799,-500.0,0.00062465,120]
[322320756,1712951453809,-500.0,0.00062465,120]
[322320757,1712951453818,-164.441677,0.00062465,120]
[322320758,1712951453829,-164.441677,0.00062465,120]
[322320759,1712951453842,-742.69,0.00062465,120]
[322320760,1712951453851,-500.0,0.00062465,120]
[322320761,1712951453861,-6615.18,0.00062465,120]
[322320762,1712951453870,-1356.1,0.00062465,120]
[322320763,1712951453880,-831.74,0.00062465,120]
[322320764,1712951453890,-500.0,0.00062465,120]
[322320765,1712951453900,-3749.95,0.00062465,120]
[322320766,1712951453910,-1116.00725641,0.00062465,120]
[322320767,1712951454071,-6912.93110096,0.00024999,2]
[322320768,1712951454081,-500.0,0.00054794,120]
[322320769,1712951454090,-238.52932012,0.00054794,120]
[322320770,1712951454100,-500.0,0.00054794,120]
[322320771,1712951454109,-500.0,0.00056712,120]
[322320772,1712951454118,-500.0,0.00056712,120]
[322320773,1712951454128,-500.0,0.0005863,120]
[322320774,1712951454137,-500.0,0.00060547,120]
[322320775,1712951454146,-500.0,0.00062465,120]
[322320776,1712951454155,-1000.0,0.00062465,7]
[322320777,1712951454164,-500.0,0.00062465,120]
[322320778,1712951454173,-353.99430521,0.00062465,120]
[322320779,1712951454182,-2721.92,0.00062465,120]
[322320780,1712951454191,-500.0,0.00062465,120]
[322320781,1712951454200,-500.0,0.00062465,120]
[322320782,1712951454209,-758.16753,0.00062465,120]
[322320783,1712951454218,-503.87,0.00062465,120]
[322320784,1712951454228,-758.16753,0.00062465,120]
[322320785,1712951454237,-500.0,0.00062465,120]
[322320786,1712951454246,-936.62,0.00062465,120]
[322320787,1712951454255,-870.38,0.00062465,120]
[322320788,1712951454264,-500.0,0.00062465,120]
[322320789,1712951454273,-158.672482,0.00062465,120]
[322320790,1712951454283,-3029.72,0.00062465,120]
[322320791,1712951454292,-158.672482,0.00062465,120]
[322320792,1712951454302,-500.0,0.00062465,120]
[322320793,1712951454311,-500.0,0.00062465,60]
[322320794,1712951454320,-500.0,0.00062465,120]
[322320795,1712951454330,-500.0,0.00062465,120]
[322320796,1712951454339,-902.5,0.00062465,120]
[322320797,1712951454348,-2508.37,0.00062465,120]
[322320798,1712951454358,-800.65,0.00062465,120]
[322320799,1712951454367,-1242.51,0.00062465,120]
[322320800,1712951454376,-500.0,0.00062465,120]
[322320801,1712951454385,-1165.32,0.00062465,120]
[322320802,1712951454394,-124.04477454,0.00062465,120]
[322320803,1712951454527,-500.21886874,0.00024997,2]
[322320804,1712951454538,-587.75852615,0.00024997,2]
[322320805,1712951454548,-153.0,0.00044439,2]
[322320806,1712951454557,-153.0,0.00044987,2]
[322320807,1712951454566,-299.68387726,0.00054794,2]
[322320808,1712951454575,-500.0,0.00054794,120]
[322320809,1712951454585,-500.0,0.0005863,120]
[322320810,1712951454594,-253.54,0.00060547,120]
[322320811,1712951454606,-375.95522546,0.00062465,120]
[322320812,1712951454616,-2000.4,0.00062465,120]
[322320813,1712951454625,-500.0,0.00062465,120]
[322320814,1712951454634,-1286.56,0.00062465,120]
[322320815,1712951454644,-500.0,0.00062465,120]
[322320816,1712951454653,-844.43,0.00062465,120]
[322320817,1712951454662,-1267.5,0.00062465,120]
[322320818,1712951454672,-500.0,0.00062465,120]
[322320819,1712951454682,-500.0,0.00062465,120]
[322320820,1712951454691,-828.94,0.00062465,120]
[322320821,1712951454700,-330.34888,0.00062465,7]
[322320822,1712951454709,-857.33,0.00062465,120]
[322320823,1712951454718,-500.0,0.00062465,120]
[322320824,1712951454727,-522.69366237,0.00062465,120]
[322320825,1712951454738,-500.0,0.00062465,120]
[322320826,1712951454748,-500.0,0.00062465,120]
[322320827,1712951454757,-500.0,0.00062465,120]
[322320828,1712951454766,-500.0,0.00062465,120]
[322320829,1712951454776,-500.0,0.00062465,120]
[322320830,1712951454785,-500.0,0.00062465,120]
[322320831,1712951454795,-248.35466,0.00062465,14]
[322320832,1712951454804,-248.35466,0.00062465,14]
[322320833,1712951454813,-37087.71,0.00062465,120]
[322320834,1712951454822,-500.0,0.00062465,120]
[322320835,1712951454833,-500.0,0.00062465,120]
[322320836,1712951454844,-1034.24,0.00062465,120]
[322320837,1712951454856,-500.0,0.00062465,120]
[322320838,1712951454868,-11023.14,0.00062465,120]
[322320839,1712951454877,-1092.24,0.00062465,120]
[322320840,1712951454892,-2860.19,0.00062465,21]
[322320841,1712951454912,-230.064055,0.00062465,120]
[322320842,1712951454928,-230.064055,0.00062465,120]
[322320843,1712951454950,-500.0,0.00062465,120]
[322320844,1712951454968,-1621.18,0.00062465,120]
[322320845,1712951454984,-500.0,0.00062465,120]
[322320846,1712951455001,-500.0,0.00062465,120]
[322320847,1712951455018,-3998.1,0.00062465,120]
[322320848,1712951455035,-500.0,0.00062465,120]
[322320849,1712951455052,-1384.49,0.00062465,120]
[322320850,1712951455068,-1760.0,0.00062465,120]
[322320851,1712951455087,-500.0,0.00062465,120]
[322320852,1712951455107,-500.0,0.00062465,120]
[322320853,1712951455122,-1256.8,0.00062465,120]
[322320854,1712951455136,-527.54,0.00062465,120]
[322320855,1712951455152,-2181.57,0.00062465,120]
[322320856,1712951455168,-500.0,0.00062465,120]
[322320857,1712951455181,-500.0,0.00062465,120]
[322320858,1712951455196,-905.0,0.00062962,120]
[322320859,1712951455210,-3239.5400966,0.000633,120]
[322320860,1712951455225,-1000.0,0.00063465,120]
[322320861,1712951455239,-150.83408251,0.00063539,2]
[322320862,1712951455253,-161.34770854,0.00063793,120]
[322320863,1712951455268,-163.860034,0.00063927,2]
[322320864,1712951455282,-158.159023,0.00063927,2]
[322320865,1712951455297,-500.0,0.00064383,120]
[322320866,1712951455308,-500.0,0.00064383,120]
[322320867,1712951455317,-500.0,0.00064383,120]
[322320868,1712951455326,-500.0,0.00064383,120]
[322320869,1712951455335,-734.55,0.00064383,120]
[322320870,1712951455345,-500.0,0.00064383,120]
[322320871,1712951455354,-429.06671737,0.00064383,120]
[322320872,1712951455365,-888.76,0.00064383,120]
[322320873,1712951455374,-500.0,0.00064383,120]
[322320874,1712951455383,-500.0,0.00064383,120]
[322320875,1712951455393,-187.85934081,0.00064383,120]
[322320876,1712951455403,-500.0,0.00064383,120]
[322320877,1712951455412,-500.0,0.00064383,120]
[322320878,1712951455422,-762.13,0.00064383,120]
[322320879,1712951455431,-1807.37,0.00064383,60]
[322320880,1712951455441,-500.0,0.00064383,120]
[322320881,1712951455450,-500.0,0.00064383,120]
[322320882,1712951455461,-500.0,0.00064383,120]
[322320883,1712951455580,-834.11,0.00064383,120]
[322320884,1712951455636,-229.11562185,0.00064383,120]
[322320885,1712951455646,-1212.39,0.00064383,120]
[322320886,1712951455655,-500.0,0.00064383,120]
[322320887,1712951455665,-500.0,0.00064383,120]
[322320888,1712951455675,-742.69,0.00064383,120]
[322320889,1712951455684,-500.0,0.00064383,120]
[322320890,1712951455694,-6615.18,0.00064383,120]
[322320891,1712951455703,-1356.1,0.00064383,120]
[322320892,1712951455712,-831.74,0.00064383,120]
[322320893,1712951455722,-500.0,0.00064383,120]
[322320894,1712951455732,-3749.95,0.00064383,120]
[322320895,1712951455741,-500.0,0.00064383,120]
[322320896,1712951455750,-1000.0,0.00064383,7]
[322320897,1712951455759,-500.0,0.00064383,120]
[322320898,1712951455768,-2721.92,0.00064383,120]
[322320899,1712951455778,-500.0,0.00064383,120]
[322320900,1712951455787,-500.0,0.00064383,120]
[322320901,1712951455796,-503.87,0.00064383,120]
[322320902,1712951455805,-500.0,0.00064383,120]
[322320903,1712951455814,-936.62,0.00064383,120]
[322320904,1712951455823,-870.38,0.00064383,120]
[322320905,1712951455836,-500.0,0.00064383,120]
[322320906,1712951455846,-3029.72,0.00064383,120]
[322320907,1712951455855,-500.0,0.00064383,120]
[322320908,1712951455869,-500.0,0.00064383,60]
[322320909,1712951455878,-268.11855882,0.00064383,120]
[322320910,1712951455887,-500.0,0.00064383,120]
[322320911,1712951455896,-902.5,0.00064383,120]
[322320912,1712951455906,-33.55168693,0.00064383,120]
[322320913,1712951458657,-2474.81831307,0.00064383,120]
[322320914,1712951458667,-800.65,0.00064383,120]
[322320915,1712951458676,-1242.51,0.00064383,120]
[322320916,1712951458686,-500.0,0.00064383,120]
[322320917,1712951458695,-1165.32,0.00064383,120]
[322320918,1712951458705,-500.0,0.00064383,120]
[322320919,1712951458716,-2000.4,0.00064383,120]
[322320920,1712951458728,-500.0,0.00064383,120]
[322320921,1712951458738,-1286.56,0.00064383,120]
[322320922,1712951458748,-500.0,0.00064383,120]
[322320923,1712951458758,-844.43,0.00064383,120]
[322320924,1712951458767,-1267.5,0.00064383,120]
[322320925,1712951458777,-500.0,0.00064383,120]
[322320926,1712951458787,-500.0,0.00064383,120]
[322320927,1712951458796,-828.94,0.00064383,120]
[322320928,1712951458805,-857.33,0.00064383,120]
[322320929,1712951458816,-500.0,0.00064383,120]
[322320930,1712951458825,-500.0,0.00064383,120]
[322320931,1712951458836,-500.0,0.00064383,120]
[322320932,1712951458846,-283.20543271,0.00064383,120]
[322320933,1712951458856,-500.0,0.00064383,120]
[322320934,1712951458867,-500.0,0.00064383,120]
[322320935,1712951458877,-500.0,0.00064383,120]
[322320936,1712951458887,-500.0,0.00064383,120]
[322320937,1712951458897,-37087.71,0.00064383,120]
[322320938,1712951458906,-210.74769509,0.00064383,120]
[322320939,1712951458915,-1034.24,0.00064383,120]
[322320940,1712951458927,-500.0,0.00064383,120]
[322320941,1712951458938,-11023.14,0.00064383,120]
[322320942,1712951458947,-1092.24,0.00064383,120]
[322320943,1712951458957,-2860.19,0.00064383,21]
[322320944,1712951458966,-500.0,0.00064383,120]
[322320945,1712951458975,-1621.18,0.00064383,120]
[322320946,1712951458984,-500.0,0.00064383,120]
[322320947,1712951458993,-500.0,0.00064383,120]
[322320948,1712951459002,-3998.1,0.00064383,120]
[322320949,1712951459012,-500.0,0.00064383,120]
[322320950,1712951459022,-1384.49,0.00064383,120]
[322320951,1712951459031,-1760.0,0.00064383,120]
[322320952,1712951459041,-500.0,0.00064383,120]
[322320953,1712951459050,-500.0,0.00064383,120]
[322320954,1712951459059,-1256.8,0.00064383,120]
[322320955,1712951459069,-527.54,0.00064383,120]
[322320956,1712951459078,-2181.57,0.00064383,120]
[322320957,1712951459088,-500.0,0.00064383,120]
[322320958,1712951459097,-500.0,0.00064383,120]
[322320959,1712951459106,-500.0,0.00065753,120]
[322320960,1712951459117,-500.0,0.00065753,120]
[322320961,1712951459127,-500.0,0.00065753,120]
[322320962,1712951459136,-500.0,0.00065753,120]
[322320963,1712951459145,-500.0,0.00065753,120]
[322320964,1712951459154,-500.0,0.00065753,120]
[322320965,1712951459163,-1000.0,0.0006613,120]
[322320966,1712951459173,-905.0,0.00066276,120]
[322320967,1712951459182,-464.50545485,0.00066299,7]
[322320968,1712951459191,-500.0,0.00066301,120]
[322320969,1712951459200,-500.0,0.00066301,120]
[322320970,1712951459209,-500.0,0.00066301,120]
[322320971,1712951459219,-311.39759806,0.00066301,120]
[322320972,1712951459229,-734.55,0.00066301,120]
[322320973,1712951459238,-500.0,0.00066301,120]
[322320974,1712951459246,-100.02352359,0.00066301,120]
[322320975,1712951459259,-788.73647641,0.00066301,120]
[322320976,1712951459268,-500.0,0.00066301,120]
[322320977,1712951459277,-500.0,0.00066301,120]
[322320978,1712951459287,-500.0,0.00066301,120]
[322320979,1712951459296,-500.0,0.00066301,120]
[322320980,1712951459305,-762.13,0.00066301,120]
[322320981,1712951459315,-1807.37,0.00066301,60]
[322320982,1712951459324,-500.0,0.00066301,120]
[322320983,1712951459333,-500.0,0.00066301,120]
[322320984,1712951459342,-500.0,0.00066301,120]
[322320985,1712951459352,-834.11,0.00066301,120]
[322320986,1712951459362,-1212.39,0.00066301,120]
[322320987,1712951459372,-500.0,0.00066301,120]
[322320988,1712951459382,-500.0,0.00066301,120]
[322320989,1712951459391,-742.69,0.00066301,120]
[322320990,1712951459400,-500.0,0.00066301,120]
[322320991,1712951459409,-255.99150544,0.00066301,120]
[322320992,1712951459519,-500.0,0.00054794,120]
[322320993,1712951459530,-1356.1,0.00066301,120]
[322320994,1712951459540,-831.74,0.00066301,120]
[322320995,1712951459551,-500.0,0.00066301,120]
[322320996,1712951459561,-3749.95,0.00066301,120]
[322320997,1712951459570,-332.21045489,0.00066301,120]
[322320998,1712951459580,-1000.0,0.00066301,7]
[322320999,1712951459589,-500.0,0.00066301,120]
[322321000,1712951459598,-2721.92,0.00066301,120]
[322321001,1712951459607,-337.52085965,0.00066301,120]
[322321002,1712951459620,-500.0,0.00066301,120]
[322321003,1712951459630,-503.87,0.00066301,120]
[322321004,1712951459642,-495.71633726,0.00066301,120]
[322321005,1712951459652,-936.62,0.00066301,120]
[322321006,1712951459662,-870.38,0.00066301,120]
[322321007,1712951459671,-500.0,0.00066301,120]
[322321008,1712951459681,-3029.72,0.00066301,120]
[322321009,1712951459690,-500.0,0.00066301,120]
[322321010,1712951459699,-500.0,0.00066301,60]
[322321011,1712951459709,-902.5,0.00066301,120]
[322321012,1712951459718,-500.0,0.00066301,120]
[322321013,1712951459727,-2508.37,0.00066301,120]
[322321014,1712951459736,-800.65,0.00066301,120]
[322321015,1712951459746,-1242.51,0.00066301,120]
[322321016,1712951459755,-194.51413693,0.00066301,120]
[322321017,1712951459765,-1165.32,0.00066301,120]
[322321018,1712951459774,-500.0,0.00066301,120]
[322321019,1712951459783,-2000.4,0.00066301,120]
[322321020,1712951459792,-500.0,0.00066301,120]
[322321021,1712951459801,-1286.56,0.00066301,120]
[322321022,1712951459810,-500.0,0.00066301,120]
[322321023,1712951459821,-844.43,0.00066301,120]
[322321024,1712951459830,-1267.5,0.00066301,120]
[322321025,1712951459840,-500.0,0.00066301,120]
[322321026,1712951459851,-500.0,0.00066301,120]
[322321027,1712951459861,-828.94,0.00066301,120]
[322321028,1712951459875,-857.33,0.00066301,120]
[322321029,1712951459883,-500.0,0.00066301,120]
[322321030,1712951459892,-500.0,0.00066301,120]
[322321031,1712951459902,-500.0,0.00066301,120]
[322321032,1712951459912,-500.0,0.00066301,120]
[322321033,1712951459921,-500.0,0.00066301,120]
[322321034,1712951459931,-500.0,0.00066301,120]
[322321035,1712951459940,-500.0,0.00066301,120]
[322321036,1712951459949,-37087.71,0.00066301,120]
[322321037,1712951459959,-1034.24,0.00066301,120]
[322321038,1712951459968,-500.0,0.00066301,120]
[322321039,1712951459978,-11023.14,0.00066301,120]
[322321040,1712951459988,-1092.24,0.00066301,120]